bitfinex/quotes_ETHUSD_20240722
["timestamp","ask_amount","ask_price","bid_price","bid_amount"]
[1721659423696,2.916273,3460.0,3459.2,3.0]
[1721659425808,2.89038,3459.8,3459.0,3.0]
[1721659425996,2.2826,3459.6,3458.7,0.013]
[1721659426196,2.2826,3459.6,3458.8,2.89116]
[1721659426435,0.02604442,3459.5,3458.8,2.89116]
[1721659426807,0.02604442,3459.5,3458.9,2.89102]
[1721659427127,0.02604442,3459.5,3458.8,2.89116]
[1721659427324,0.02604442,3459.5,3458.9,2.89106]
[1721659427529,0.02604442,3459.5,3458.9,3.5727254]
[1721659427727,0.02604442,3459.5,3459.0,2.891]
[1721659428292,2.89027,3459.9,3459.0,2.891]
[1721659428564,0.02607777,3459.8,3459.0,2.891]
[1721659429738,0.02607777,3459.8,3459.0,2.89095]
[1721659429956,0.02607777,3459.8,3459.1,2.89092]
[1721659430434,0.02594803,3459.7,3459.0,3.53863554]
[1721659430640,0.02594803,3459.7,3459.2,2.89079]
[1721659430800,2.3011,3460.0,3459.2,2.89079]
[1721659430999,0.02601461,3459.9,3459.2,2.89079]
[1721659431243,0.02601461,3459.9,3459.2,3.53373355]
[1721659432246,0.02601461,3459.9,3459.2,0.64294355]
[1721659433145,2.91626461,3459.9,3458.9,2.89107]
[1721659433314,2.89035,3459.8,3458.9,2.89107]
[1721659433517,0.02599979,3459.7,3458.9,2.89107]
[1721659433746,0.02599979,3459.7,3459.0,2.89099]
[1721659433925,2.89025,3459.9,3459.0,2.89099]
[1721659434249,0.02601677,3459.8,3459.0,2.89099]
[1721659434921,0.02601677,3459.8,3458.7,0.013]
[1721659435246,2.91639677,3459.8,3458.8,0.590429]
[1721659435477,2.89046,3459.7,3458.8,3.481559]
[1721659435615,2.89046,3459.7,3458.8,6.481559]
[1721659435816,0.0259376,3459.6,3458.8,6.481559]
[1721659436035,0.0259376,3459.6,3458.9,3.8296569]
[1721659436250,2.88329747,3459.8,3458.9,3.8296569]
[1721659436426,0.02590868,3459.5,3459.0,2.89097]
[1721659436644,5.19127,3460.0,3458.9,0.9385769]
[1721659436846,5.19127,3460.0,3459.1,2.89087]
[1721659436847,0.02590042,3459.4,3459.1,2.89087]
[1721659437144,5.19127,3460.0,3459.2,0.67205269]
[1721659437344,2.89026,3459.9,3458.9,0.9385769]
[1721659437534,2.89039,3459.8,3458.9,0.9385769]
[1721659437734,2.91629808,3459.7,3458.8,2.89112]
[1721659438159,2.89055,3459.6,3458.7,5.90425]
[1721659438320,0.02610215,3459.5,3458.8,1.00555573]
[1721659438512,0.02610215,3459.5,3458.7,5.90425]
[1721659438513,2.91669215,3459.5,3458.7,3.013]
[1721659438766,2.91669215,3459.5,3458.7,0.013]
[1721659439058,2.89071,3459.4,3458.7,0.013]
[1721659439419,0.02575537,3459.3,3458.7,0.013]
[1721659439911,2.89117,3458.8,3458.7,0.013]
[1721659440201,2.91687237,3458.8,3458.7,0.013]
[1721659440355,6.70767512,3458.8,3458.7,0.013]
[1721659440542,7.49839367,3458.8,3458.7,0.013]
[1721659440750,6.59876092,3458.8,3458.7,0.013]
[1721659441115,12.4105363,3458.8,3458.7,0.013]
[1721659441385,13.79855217,3458.8,3458.7,0.013]
[1721659441551,13.90738217,3458.8,3458.7,0.013]
[1721659441745,17.99980505,3458.8,3458.7,0.013]
[1721659442084,16.79855217,3458.8,3458.7,0.013]
[1721659442293,19.69383092,3458.8,3458.7,0.013]
[1721659442509,2.89214,3457.7,3456.6,0.60524087]
[1721659442644,2.89214,3457.7,3456.5,2.312]
[1721659442840,2.89214,3457.7,3456.2,2.92002867]
[1721659442841,2.89243,3457.3,3456.3,0.60524087]
[1721659443091,2.89243,3457.3,3456.2,2.89331]
[1721659443092,2.89235,3457.4,3456.4,5.40864355]
[1721659443253,0.0255228,3457.2,3456.4,2.89313]
[1721659443454,0.02553543,3457.3,3456.5,0.578644]
[1721659443671,5.19725,3457.4,3456.5,0.578644]
[1721659443878,0.0255228,3457.2,3456.5,0.578644]
[1721659444063,0.02553543,3457.3,3456.1,2.312]
[1721659444259,5.19725,3457.4,3456.1,2.89341]
[1721659444260,2.91817016,3457.1,3456.1,2.89341]
[1721659444492,2.89266,3457.1,3456.1,2.89341]
[1721659444657,2.3049,3457.4,3456.1,2.89341]
[1721659444658,0.02728423,3457.0,3456.2,2.89334]
[1721659444857,0.02728423,3457.0,3456.1,2.89341]
[1721659444858,2.89243,3457.3,3456.3,2.89326]
[1721659445074,0.0272443,3456.9,3456.4,0.578667]
[1721659445272,2.89254,3457.2,3456.4,3.578667]
[1721659445472,2.3049,3457.4,3456.4,6.471797]
[1721659445473,0.02723076,3456.8,3456.4,6.471797]
[1721659445645,2.3049,3457.4,3456.4,6.471797]
[1721659445846,2.3049,3457.4,3456.6,2.89294]
[1721659446090,2.3049,3457.4,3456.4,6.471837]
[1721659446091,2.3049,3457.4,3456.7,0.9364777]
[1721659446609,2.3049,3457.4,3456.7,3.8294077]
[1721659446787,2.3049,3457.4,3456.7,3.8293377]
[1721659447112,2.89201,3457.8,3456.9,2.89271]
[1721659447314,2.3645,3457.9,3457.0,2.89267]
[1721659447600,2.4349,3458.5,3457.1,0.578538]
[1721659447748,2.4349,3458.5,3457.8,2.89195]
[1721659448148,2.4349,3458.5,3457.6,2.89214]
[1721659448750,2.4349,3458.5,3457.4,2.89231]
[1721659448751,2.4349,3458.5,3457.5,2.89224]
[1721659448949,2.4349,3458.5,3457.1,0.578538]
[1721659448950,2.89159,3458.3,3457.3,2.89237]
[1721659449145,2.89159,3458.3,3457.3,4.2704608]
[1721659449399,2.4349,3458.5,3457.4,2.89234]
[1721659449698,2.4349,3458.5,3457.3,1.3780908]
[1721659449864,2.4349,3458.5,3457.7,2.89204]
[1721659450272,2.4349,3458.5,3457.3,1.3780908]
[1721659450273,2.4349,3458.5,3457.8,2.892]
[1721659450488,4.53,3459.0,3458.1,2.89175]
[1721659450489,3.0,3458.9,3458.1,2.89175]
[1721659450649,5.1151,3459.0,3458.0,2.89179]
[1721659450851,5.1151,3459.0,3458.0,2.8918]
[1721659451156,8.00612,3459.0,3458.0,2.89177]
[1721659451485,5.1151,3459.0,3458.3,2.89159]
[1721659451679,5.1151,3459.0,3458.2,2.89159]
[1721659451864,5.1151,3459.0,3458.4,2.89148]
[1721659452064,5.1151,3459.0,3458.2,3.209669]
[1721659452065,2.83,3459.0,3458.2,3.209669]
[1721659452585,0.453442,3458.9,3458.2,0.318079]
[1721659453106,2.4385,3458.8,3457.3,1.3780908]
[1721659453257,2.89138,3458.6,3457.5,2.89217]
[1721659453455,4.1385,3458.8,3457.5,2.89217]
[1721659453692,2.89143,3458.5,3457.5,2.89217]
[1721659453878,2.8913,3458.7,3457.7,2.89209]
[1721659454073,2.89134,3458.6,3457.5,5.78435]
[1721659454272,1.3204362,3458.7,3457.7,2.89204]
[1721659454474,1.3204362,3458.7,3457.8,2.89192]
[1721659455810,2.4385,3458.8,3458.2,2.89165]
[1721659455976,0.453442,3458.9,3458.4,2.89146]
[1721659456357,0.453442,3458.9,3458.2,2.8916]
[1721659456710,0.453442,3458.9,3458.4,2.89149]
[1721659456890,0.453442,3458.9,3458.2,2.89166]
[1721659456891,0.453442,3458.9,3458.2,2.89161]
[1721659457075,0.453442,3458.9,3458.0,2.89178]
[1721659457414,0.453442,3458.9,3457.6,3.0]
[1721659457415,1.0769712,3458.9,3457.9,2.89187]
[1721659457564,3.9680612,3458.9,3458.0,2.89184]
[1721659457758,3.9680612,3458.9,3457.8,2.89198]
[1721659457759,3.9680612,3458.9,3457.9,2.8919]
[1721659457965,1.0769712,3458.9,3458.1,2.89171]
[1721659458161,0.453442,3458.9,3458.1,2.89171]
[1721659458365,0.453442,3458.9,3458.2,2.89166]
[1721659458607,0.453442,3458.9,3458.3,2.89158]
[1721659458910,0.453442,3458.9,3458.3,2.89154]
[1721659459120,0.453442,3458.9,3458.3,2.89153]
[1721659459325,0.453442,3458.9,3458.1,2.89168]
[1721659459461,0.453442,3458.9,3458.2,2.89161]
[1721659459662,0.453442,3458.9,3458.1,2.8917]
[1721659460101,3.344572,3458.9,3457.9,2.89188]
[1721659460314,0.453442,3458.9,3458.0,2.89184]
[1721659460621,0.453442,3458.9,3457.6,3.0]
[1721659460822,2.89134,3458.6,3457.4,3.0]
[1721659461124,5.26048,3458.8,3457.7,2.89208]
[1721659461329,2.89138,3458.6,3457.7,2.89208]
[1721659461616,2.89166,3458.3,3457.1,2.89254]
[1721659461906,2.89168,3458.2,3457.2,2.89249]
[1721659462109,1.7,3458.4,3457.0,2.89262]
[1721659462267,2.4888,3457.9,3457.0,2.89267]
[1721659462603,2.4888,3457.9,3457.1,2.89259]
[1721659462988,2.4888,3457.9,3457.1,2.89253]
[1721659463191,2.4888,3457.9,3456.9,2.8927]
[1721659463387,2.4888,3457.9,3456.6,2.3664]
[1721659463388,5.38077,3457.9,3457.0,2.89267]
[1721659463565,5.38077,3457.9,3456.7,2.89285]
[1721659463763,5.38077,3457.9,3456.7,2.89287]
[1721659463764,2.89223,3457.6,3456.7,2.89287]
[1721659464209,2.89231,3457.5,3456.5,2.89302]
[1721659464517,2.89217,3457.6,3456.7,2.89292]
[1721659464666,5.5298,3457.9,3456.2,2.89332]
[1721659464871,5.5298,3457.9,3455.9,9.76]
[1721659464872,2.89201,3457.8,3456.9,2.89268]
[1721659465062,1.301373,3457.7,3456.8,2.89284]
[1721659465262,1.301373,3457.7,3456.4,2.89315]
[1721659465481,8.42174,3457.9,3456.7,2.89286]
[1721659465679,8.42174,3457.9,3456.9,2.89275]
[1721659465903,2.4888,3457.9,3457.1,2.89252]
[1721659466105,2.4888,3457.9,3457.1,2.89255]
[1721659466863,2.4888,3457.9,3457.2,2.89247]
[1721659467094,2.89169,3458.2,3457.3,2.89242]
[1721659467299,0.967819,3458.1,3457.3,2.89242]
[1721659467469,3.859589,3458.1,3457.1,5.78506]
[1721659467665,3.859589,3458.1,3457.2,2.8925]
[1721659467973,0.967819,3458.1,3457.2,2.8925]
[1721659468308,9.67805,3458.4,3457.3,2.89235]
[1721659468613,2.89159,3458.3,3457.3,2.89235]
[1721659468818,2.89159,3458.3,3457.3,5.78472]
[1721659468996,2.89159,3458.3,3457.4,2.89229]
[1721659469191,6.7865,3458.4,3457.5,2.89225]
[1721659469507,5.0865,3458.4,3457.5,2.89225]
[1721659469709,5.0865,3458.4,3457.9,2.8919]
[1721659469921,3.344572,3458.9,3457.9,2.8919]
[1721659469922,2.4087,3458.8,3457.9,2.89188]
[1721659470142,0.453442,3458.9,3457.1,3.279]
[1721659470143,0.453442,3458.9,3458.4,2.89146]
[1721659470283,2.89128,3458.7,3457.6,2.89217]
[1721659470488,2.417,3458.8,3457.6,2.89214]
[1721659470489,0.5761722,3458.6,3457.6,2.89214]
[1721659470714,2.89138,3458.6,3457.6,2.89212]
[1721659470920,2.417,3458.8,3457.3,5.89242]
[1721659470921,2.89159,3458.3,3457.3,5.89242]
[1721659471125,1.7,3458.7,3456.8,2.89276]
[1721659471126,8.03697,3458.0,3457.0,2.89263]
[1721659471372,5.14506,3458.0,3456.8,2.89278]
[1721659471492,5.14506,3458.0,3456.6,2.89296]
[1721659471493,2.89201,3457.8,3456.6,2.89296]
[1721659471695,2.89202,3457.8,3456.8,2.8928]
[1721659472088,2.89202,3457.8,3456.8,2.89279]
[1721659472330,2.89202,3457.8,3456.9,2.89273]
[1721659472639,5.14509,3458.0,3457.1,2.89255]
[1721659472640,5.14507,3458.0,3457.1,2.89255]
[1721659473296,2.89192,3457.9,3457.0,2.89266]
[1721659474189,2.89201,3457.8,3457.0,2.89266]
[1721659474589,0.973699,3457.9,3457.0,2.89266]
[1721659475008,0.973699,3457.9,3456.8,5.78559]
[1721659475208,2.89206,3457.8,3456.8,2.89277]
[1721659475441,2.89206,3457.8,3456.9,2.89276]
[1721659475591,5.14507,3458.0,3457.0,0.6074826]
[1721659475592,2.2532,3458.0,3457.0,0.6074826]
[1721659475793,2.2532,3458.0,3457.2,2.8925]
[1721659476243,5.14504,3458.0,3457.0,2.89263]
[1721659476408,2.2532,3458.0,3457.2,2.89249]
[1721659476734,2.2532,3458.0,3457.2,2.8925]
[1721659477104,2.2532,3458.0,3456.3,7.841]
[1721659477105,2.2532,3458.0,3456.7,2.89289]
[1721659477340,2.2532,3458.0,3457.1,2.89255]
[1721659477505,2.2532,3458.0,3456.8,0.289289]
[1721659477506,2.2532,3458.0,3457.0,2.8926]
[1721659477717,2.2532,3458.0,3457.0,2.89259]
[1721659478046,2.2532,3458.0,3457.2,2.8925]
[1721659478215,2.2532,3458.0,3457.4,2.89234]
[1721659478424,2.89151,3458.4,3457.4,2.8923]
[1721659478610,2.89172,3458.2,3457.1,2.89254]
[1721659478804,2.89203,3457.8,3456.9,2.89269]
[1721659479059,2.89203,3457.8,3456.8,3.182129]
[1721659479060,2.89216,3457.7,3456.8,3.182129]
[1721659479425,2.89202,3457.8,3456.8,0.289289]
[1721659479740,2.89209,3457.7,3456.8,0.289289]
[1721659479945,2.3764,3458.2,3457.3,2.89238]
[1721659480259,2.3764,3458.2,3457.2,2.89243]
[1721659480544,2.3764,3458.2,3457.3,2.89238]
[1721659480702,2.3764,3458.2,3457.4,2.89232]
[1721659480908,2.3764,3458.2,3457.0,2.89262]
[1721659481117,3.5012931,3458.1,3457.2,2.89251]
[1721659481355,0.6094831,3458.1,3457.3,2.89241]
[1721659481503,2.89192,3458.0,3456.9,0.6182209]
[1721659481705,2.89192,3458.0,3457.0,2.89262]
[1721659482316,2.89203,3457.8,3457.0,2.89262]
[1721659482700,0.6094831,3458.1,3457.1,2.89259]
[1721659482907,0.6094831,3458.1,3457.3,2.89242]
[1721659483138,3.5012431,3458.1,3457.3,2.89242]
[1721659483349,3.5012431,3458.1,3457.1,2.89252]
[1721659483517,2.3764,3458.2,3457.1,0.3181809]
[1721659483844,2.89207,3457.8,3456.8,0.289289]
[1721659484017,2.89207,3457.8,3456.7,5.89289]
[1721659484018,1.7,3458.0,3456.7,3.0]
[1721659484217,1.7,3458.0,3456.4,2.89313]
[1721659484218,2.4211,3457.4,3456.4,2.89313]
[1721659484538,5.31349,3457.4,3456.4,2.89313]
[1721659484742,2.4211,3457.4,3456.4,2.89313]
[1721659484955,1.03049607,3457.3,3456.0,7.31]
[1721659485105,2.89268,3457.0,3455.8,2.89362]
[1721659485300,2.89268,3457.0,3455.4,2.894]
[1721659485301,2.89277,3456.9,3455.9,2.89359]
[1721659485506,2.89277,3456.9,3455.7,2.8937]
[1721659486706,2.89285,3456.8,3455.7,2.8937]
[1721659486958,3.471412,3456.8,3455.8,2.89367]
[1721659487273,2.337,3456.7,3455.1,1.50972284]
[1721659487406,5.23,3456.7,3455.6,2.89383]
[1721659487608,2.89302,3456.6,3455.6,2.89383]
[1721659487808,4.0672652,3456.6,3455.7,2.89376]
[1721659488107,4.0673152,3456.6,3455.7,2.89376]
[1721659488532,4.0673152,3456.6,3455.1,2.89423]
[1721659488533,4.0673152,3456.6,3455.6,2.89383]
[1721659488842,2.337,3456.7,3455.8,2.89363]
[1721659489045,2.89302,3456.6,3455.7,2.89374]
[1721659489208,2.337,3456.7,3455.6,2.89377]
[1721659489408,5.22993,3456.7,3455.7,2.8937]
[1721659489639,5.22993,3456.7,3455.8,2.89367]
[1721659489640,2.337,3456.7,3455.8,2.89367]
[1721659489826,5.22995,3456.7,3455.7,2.89372]
[1721659490013,5.22995,3456.7,3455.8,2.89368]
[1721659490410,2.89261,3457.1,3456.1,2.89342]
[1721659490611,5.89268,3457.0,3456.1,2.89342]
[1721659490836,3.0,3457.0,3456.1,2.89342]
[1721659491037,5.89264,3457.1,3456.1,2.89342]
[1721659491342,7.37224492,3457.1,3456.1,2.89342]
[1721659491508,4.47960492,3457.1,3456.2,2.8933]
[1721659491714,4.47960492,3457.1,3456.1,2.89341]
[1721659491908,2.3807,3457.2,3456.3,2.8932]
[1721659492140,2.3807,3457.2,3456.2,2.89333]
[1721659492342,2.3807,3457.2,3456.3,2.89319]
[1721659492651,2.3807,3457.2,3455.7,2.91075]
[1721659492820,2.3807,3457.2,3456.3,2.89319]
[1721659493015,2.3807,3457.2,3456.1,2.89336]
[1721659493016,6.49690361,3457.2,3456.1,2.89336]
[1721659493216,6.49690361,3457.2,3456.2,2.89333]
[1721659493646,6.49690361,3457.2,3456.1,2.89343]
[1721659493858,2.89268,3457.0,3456.1,2.89343]
[1721659494059,2.89268,3457.0,3455.9,2.89352]
[1721659494215,2.3807,3457.2,3455.9,0.580427]
[1721659494413,2.3807,3457.2,3456.3,2.89322]
[1721659494614,5.27322,3457.2,3456.3,2.89322]
[1721659494815,5.27322,3457.2,3456.1,5.78676]
[1721659495049,2.8926,3457.1,3456.1,2.89336]
[1721659495348,2.89268,3457.0,3456.1,2.89336]
[1721659495553,2.89284,3456.9,3455.9,0.580427]
[1721659495750,2.89284,3456.9,3455.9,2.89356]
[1721659496049,2.89277,3456.9,3456.0,2.89347]
[1721659496722,3.90223592,3457.1,3456.1,2.89342]
[1721659496723,2.89268,3457.0,3456.1,2.89342]
[1721659497062,1.00960592,3457.1,3456.2,2.89332]
[1721659497228,5.27322,3457.2,3456.3,3.471884]
[1721659497229,5.27321,3457.2,3456.3,3.471884]
[1721659497425,2.89265,3457.1,3456.1,2.89338]
[1721659497774,2.89281,3456.9,3456.0,2.8935]
[1721659498060,2.89281,3456.9,3455.8,2.89367]
[1721659498212,2.8929,3456.8,3455.9,2.89359]
[1721659498413,2.89281,3456.9,3455.8,2.89367]
[1721659498619,2.89286,3456.8,3455.9,0.289367]
[1721659499150,2.89286,3456.8,3456.0,2.89351]
[1721659499650,2.89286,3456.8,3455.9,3.182967]
[1721659500253,2.89268,3457.0,3455.9,0.289367]
[1721659500456,2.89279,3456.9,3456.1,2.89343]
[1721659500759,2.89279,3456.9,3456.0,2.89351]
[1721659500956,2.89279,3456.9,3456.0,3.5011097]
[1721659501258,2.89298,3456.7,3455.6,2.89379]
[1721659501489,2.89298,3456.7,3455.8,2.89368]
[1721659501641,4.0807,3457.2,3456.0,2.8935]
[1721659501968,2.89276,3456.9,3456.0,2.8935]
[1721659502185,2.89305,3456.6,3455.7,5.89371]
[1721659502323,2.89327,3456.3,3455.8,1.124859]
[1721659502530,2.89282,3456.9,3455.3,2.2962]
[1721659502841,2.89298,3456.7,3455.9,2.89358]
[1721659503020,2.89298,3456.7,3455.7,2.89369]
[1721659503225,3.182278,3456.7,3455.7,2.89369]
[1721659503527,3.182278,3456.7,3454.8,2.4305]
[1721659503528,2.2717,3456.4,3454.8,2.4305]
[1721659503732,2.2717,3455.6,3454.5,0.1532175]
[1721659503964,2.89414,3455.3,3454.5,0.1532175]
[1721659504130,2.2717,3455.6,3454.5,0.1532175]
[1721659504131,2.89428,3455.1,3454.5,0.1532175]
[1721659504328,1.7,3455.2,3454.5,0.1532175]
[1721659504597,2.89469,3454.6,3454.5,0.1532175]
[1721659504926,2.89463,3454.7,3454.5,0.1532175]
[1721659505151,1.7,3455.2,3454.5,0.1532175]
[1721659505360,3.54424431,3455.2,3454.5,0.1532175]
[1721659505538,2.89469,3454.6,3454.5,0.1532175]
[1721659506365,5.78938,3454.6,3454.5,0.1532175]
[1721659506660,2.89469,3454.6,3454.5,0.1532175]
[1721659506861,1.7,3454.8,3453.7,2.89537]
[1721659506862,2.89452,3454.8,3453.7,2.89537]
[1721659507025,5.89452,3454.8,3454.5,0.0972915]
[1721659507230,2.89469,3454.6,3454.5,0.0972915]
[1721659508777,5.78938,3454.6,3454.5,0.0972915]
[1721659508925,14.03047,3454.6,3454.5,0.0972915]
[1721659509133,21.914517,3454.6,3454.5,0.0972915]
[1721659509773,7.178447,3454.6,3454.5,0.0972915]
[1721659509988,2.3054,3454.6,3454.5,0.0972915]
[1721659510159,8.01872,3455.1,3454.5,0.0972915]
[1721659510497,3.0,3455.0,3454.5,0.0972915]
[1721659510831,5.1244,3455.1,3454.5,0.0972915]
[1721659511037,2.83,3455.1,3454.5,0.0972915]
[1721659511297,2.2944,3455.7,3455.0,2.89434]
[1721659511446,5.35403,3456.6,3455.3,2.89404]
[1721659511447,2.2944,3456.2,3455.3,2.89404]
[1721659511654,3.182238,3456.7,3455.1,5.35521]
[1721659511850,2.8931,3456.5,3455.5,2.89388]
[1721659512059,2.89327,3456.3,3455.1,2.89423]
[1721659512298,2.8931,3456.5,3455.4,2.89396]
[1721659512444,2.8931,3456.5,3455.6,2.89384]
[1721659512815,2.8931,3456.5,3455.5,2.89393]
[1721659512941,0.45376561,3456.7,3455.7,2.89376]
[1721659513141,2.89301,3456.6,3455.6,0.0932178]
[1721659513340,0.45376561,3456.7,3455.7,6.08614178]
[1721659513585,0.45376561,3456.7,3455.9,2.89359]
[1721659513793,0.45376561,3456.7,3455.9,2.89357]
[1721659513953,0.45376561,3456.7,3455.9,0.0932178]
[1721659514162,2.89314,3456.5,3455.9,0.0932178]
[1721659514397,0.33469056,3456.5,3455.9,0.0932178]
[1721659514691,3.34672561,3456.7,3456.0,2.89346]
[1721659514692,0.45376561,3456.7,3456.0,2.89346]
[1721659514903,0.45376561,3456.7,3456.3,2.89326]
[1721659515246,0.45376561,3456.7,3456.0,2.89348]
[1721659515486,3.0,3457.2,3456.0,2.89351]
[1721659515487,2.89272,3457.0,3456.0,2.89351]
[1721659515683,5.89281,3456.9,3456.0,0.29867278]
[1721659516010,2.89293,3456.7,3455.9,0.0932178]
[1721659516369,4.59308,3456.6,3455.9,0.0932178]
[1721659516563,2.89286,3456.8,3455.9,0.0932178]
[1721659516765,3.0,3456.7,3455.9,2.9867678]
[1721659517011,3.0,3456.8,3455.9,0.0932178]
[1721659517163,3.482228,3456.7,3455.9,0.0932178]
[1721659517373,2.89311,3456.5,3455.9,0.0932178]
[1721659517700,0.589278,3456.7,3455.9,0.0932178]
[1721659517884,0.45372626,3457.1,3456.2,2.89329]
[1721659518072,0.45372626,3457.1,3455.9,0.0932178]
[1721659518073,0.45372626,3457.1,3456.1,2.89336]
[1721659518413,0.45372626,3457.1,3455.9,0.0932178]
[1721659518414,2.8927,3457.0,3456.0,2.8935]
[1721659518724,3.0,3456.9,3456.1,2.89341]
[1721659518867,0.45372626,3457.1,3455.9,0.0932178]
[1721659519067,0.35,3456.8,3455.9,0.0932178]
[1721659519291,2.89324,3456.4,3455.9,0.0932178]
[1721659519726,2.89342,3456.2,3455.9,0.0932178]
[1721659519873,2.89343,3456.1,3455.9,0.0932178]
[1721659520073,5.78702,3456.0,3455.9,0.0932178]
[1721659520315,3.992212,3456.0,3455.9,0.0932178]
[1721659520664,1.098702,3456.0,3455.9,0.0932178]
[1721659520895,3.24351,3456.0,3455.9,0.0932178]
[1721659521066,6.13702,3456.0,3455.9,0.0932178]
[1721659521491,9.13702,3456.0,3455.9,0.0932178]
[1721659521811,15.07153,3456.0,3455.9,0.0932178]
[1721659522035,21.80004,3456.0,3455.9,0.0932178]
[1721659522172,24.433044,3456.0,3455.9,0.0932178]
[1721659522576,21.539534,3456.0,3455.9,0.0932178]
[1721659522970,18.646024,3456.0,3455.9,0.0932178]
[1721659523174,21.539534,3456.0,3455.9,0.0932178]
[1721659523411,18.646024,3456.0,3455.9,0.0932178]
[1721659526391,21.539534,3456.0,3455.9,0.0932178]
[1721659526790,18.646024,3456.0,3455.9,0.0932178]
[1721659527318,15.361024,3456.0,3455.9,0.0932178]
[1721659527814,18.254534,3456.0,3455.9,0.0932178]
[1721659528314,24.433044,3456.0,3455.9,0.0932178]
[1721659528635,21.539534,3456.0,3455.9,0.0932178]
[1721659529072,17.061024,3456.0,3455.9,0.0932178]
[1721659529272,19.954534,3456.0,3455.9,0.0932178]
[1721659529527,26.133044,3456.0,3455.9,0.0932178]
[1721659530089,23.54166639,3456.0,3455.9,0.0932178]
[1721659530508,20.25666639,3456.0,3455.9,0.0932178]
[1721659530701,19.954534,3456.0,3455.9,0.0932178]
[1721659531973,22.848044,3456.0,3455.9,0.0932178]
[1721659532279,5.78904,3454.8,3454.7,0.0040737]
[1721659533027,8.68356,3454.8,3454.7,0.0040737]
[1721659533177,11.251894,3454.8,3454.7,0.0040737]
[1721659533376,11.601894,3454.8,3454.7,0.0040737]
[1721659534283,10.73356,3454.8,3454.7,0.0040737]
[1721659534527,3.24452,3454.8,3454.7,0.0040737]
[1721659534915,2.89436,3455.0,3454.7,0.0040737]
[1721659535130,2.89422,3455.2,3454.7,0.0040737]
[1721659535131,2.89423,3455.2,3454.7,0.0040737]
[1721659535298,2.89422,3455.2,3454.7,0.0040737]
[1721659535649,2.89421,3455.2,3454.7,0.0040737]
[1721659535808,5.89377,3455.7,3454.7,0.0040737]
[1721659535809,2.89435,3455.0,3454.7,0.0040737]
[1721659536142,2.89442,3455.0,3454.7,0.0040737]
[1721659536348,5.78904,3454.8,3454.7,0.0040737]
[1721659536984,2.89452,3454.8,3454.7,0.0040737]
[1721659537183,6.078492,3454.8,3454.7,0.0040737]
[1721659537427,6.428492,3454.8,3454.7,0.0040737]
[1721659537790,2.89452,3454.8,3454.7,0.0040737]
[1721659537988,2.89449,3454.9,3454.7,0.0040737]
[1721659538214,3.24449,3454.9,3454.7,0.0040737]
[1721659538422,0.35,3454.9,3454.7,0.0040737]
[1721659538820,2.89445,3454.9,3454.7,0.0040737]
[1721659539225,2.89452,3454.8,3454.7,0.0040737]
[1721659539426,2.8944,3455.0,3454.7,0.0040737]
[1721659540296,2.89443,3454.9,3454.7,0.0040737]
[1721659540497,3.24428,3455.1,3454.7,0.0040737]
[1721659540796,2.89436,3455.0,3454.7,0.0040737]
[1721659541141,3.24428,3455.1,3454.7,0.0040737]
[1721659541142,2.89446,3454.9,3454.7,0.0040737]
[1721659541797,2.89395,3455.5,3454.7,0.0040737]
[1721659541998,2.89443,3455.0,3454.7,0.0040737]
[1721659542199,2.89424,3455.2,3454.7,0.0040737]
[1721659542400,2.89433,3455.1,3454.7,0.0040737]
[1721659542640,0.35,3455.1,3454.7,0.0040737]
[1721659542794,5.93475,3455.8,3454.8,2.271]
[1721659542994,2.89386,3455.6,3454.8,2.78797537]
[1721659543223,0.35,3455.5,3454.8,2.271]
[1721659543854,5.72344,3456.1,3455.3,2.8941]
[1721659543855,5.72343,3456.1,3455.3,2.8941]
[1721659544030,5.72343,3456.1,3454.8,2.271]
[1721659544031,2.89365,3455.9,3455.0,2.89429]
[1721659544350,2.89423,3455.2,3454.8,2.271]
[1721659544497,2.89436,3455.0,3454.7,0.0040737]
[1721659545136,2.89432,3455.1,3454.7,0.0040737]
[1721659545336,2.89437,3455.0,3454.7,0.0040737]
[1721659545642,2.89452,3454.8,3454.7,0.0040737]
[1721659545794,5.78904,3454.8,3454.7,0.0040737]
[1721659546000,4.077524,3454.8,3454.7,0.0040737]
[1721659546199,7.322044,3454.8,3454.7,0.0040737]
[1721659546398,4.427524,3454.8,3454.7,0.0040737]
[1721659546602,0.35,3454.8,3454.7,0.0040737]
[1721659546837,5.89433,3455.1,3454.7,0.0040737]
[1721659547032,0.35,3455.0,3454.7,0.0040737]
[1721659547414,2.89421,3455.2,3454.7,0.0040737]
[1721659547815,0.35,3455.1,3454.7,0.0040737]
[1721659548031,2.89446,3454.9,3454.7,0.0040737]
[1721659548334,3.858167,3455.1,3454.7,0.0040737]
[1721659548335,2.89437,3455.0,3454.7,0.0040737]
[1721659548494,2.89452,3454.8,3454.7,0.0040737]
[1721659548694,5.78879,3455.0,3454.7,0.0040737]
[1721659548900,0.613837,3455.1,3454.7,0.0040737]
[1721659549145,0.2313837,3455.0,3454.7,0.0040737]
[1721659549458,2.89423,3455.2,3454.7,0.0040737]
[1721659549662,2.89441,3455.0,3454.7,0.0040737]
[1721659550625,2.89423,3455.2,3454.7,0.0040737]
[1721659550830,0.35,3455.1,3454.7,0.0040737]
[1721659551536,0.35,3455.1,3454.7,2.8986037]
[1721659551734,2.89373,3455.8,3454.8,3.42580037]
[1721659551938,2.89373,3455.8,3454.8,2.8945]
[1721659551939,3.24389,3455.6,3454.8,2.8945]
[1721659552243,3.24389,3455.6,3454.7,2.8986637]
[1721659552811,2.8941,3455.3,3454.7,0.0040737]
[1721659553066,2.89416,3455.3,3454.7,0.0040737]
[1721659553273,2.89446,3454.9,3454.7,0.0040737]